bitfinex/quotes_ETHUSD_20251110
["timestamp","ask_amount","ask_price","bid_price","bid_amount"]
[1762795217340,3.49615251,3530.9,3529.7,0.4673]
[1762795217470,0.665,3530.8,3530.1,2.83270859]
[1762795217660,0.665,3530.8,3530.2,2.83268531]
[1762795217877,0.665,3530.8,3529.6,4.09285702]
[1762795217878,0.665,3530.8,3530.0,0.4635]
[1762795218060,2.83235741,3530.7,3530.0,0.4635]
[1762795218260,0.665,3530.8,3530.0,0.4635]
[1762795218261,0.665,3530.8,3530.1,0.196]
[1762795218600,2.83235215,3530.7,3530.1,0.196]
[1762795218761,3.49723286,3530.8,3530.1,0.196]
[1762795219298,2.83229954,3530.7,3530.1,0.196]
[1762795219468,3.49723234,3530.8,3530.1,3.02873154]
[1762795219667,3.49723234,3530.8,3530.1,3.49223154]
[1762795219890,3.49722036,3530.8,3530.2,2.8326945]
[1762795220076,3.49722036,3530.8,3530.1,4.12476893]
[1762795220288,0.665,3530.8,3530.2,2.83268576]
[1762795220490,3.4972465,3530.8,3530.1,4.12476846]
[1762795220863,2.83230645,3530.7,3530.1,4.12477602]
[1762795221125,2.83230645,3530.7,3530.1,1.29201728]
[1762795221338,2.83230645,3530.7,3530.1,3.49227412]
[1762795221634,3.49724675,3530.8,3530.1,3.49227412]
[1762795222234,0.665,3530.8,3530.7,0.4673]
[1762795223037,0.665,3530.8,3529.1,0.007]
[1762795223038,1.665216,3530.7,3529.1,0.007]
[1762795223196,7.32855259,3529.9,3529.1,0.007]
[1762795223402,0.666,3529.8,3529.1,0.203]
[1762795223624,2.83323523,3529.6,3529.1,0.203]
[1762795223811,2.83349185,3529.3,3529.1,0.203]
[1762795224025,0.666,3529.2,3529.1,0.203]
[1762795224697,0.666,3529.2,3529.1,0.6703]
[1762795225837,0.666,3529.2,3529.1,1.1295]
[1762795226537,0.666,3529.2,3529.1,0.6703]
[1762795227101,3.49950334,3529.2,3529.1,0.6703]
[1762795227346,0.666,3529.2,3529.1,0.007]
[1762795228036,3.96060334,3529.2,3529.1,0.007]
[1762795228416,11.75165593,3529.2,3529.1,0.007]
[1762795228665,13.18866659,3529.2,3529.1,0.007]
[1762795229319,14.85388259,3529.2,3529.1,0.007]
[1762795229525,14.39959426,3529.2,3529.1,0.007]
[1762795229737,15.40515501,3529.2,3529.1,0.007]
[1762795229946,14.99965101,3529.2,3529.1,0.007]
[1762795230173,6.66553767,3529.2,3529.1,0.007]
[1762795231062,14.39959426,3529.2,3529.1,0.007]
[1762795231233,14.85388259,3529.2,3529.1,0.007]
[1762795231561,15.85944334,3529.2,3529.1,0.007]
[1762795232046,14.85388259,3529.2,3529.1,0.007]
[1762795232254,14.02027874,3529.2,3529.1,1e-08]
[1762795232448,14.02027874,3529.2,3528.7,0.002]
[1762795232449,4.49904052,3528.8,3528.7,0.002]
[1762795232675,7.32416831,3528.8,3528.7,0.002]
[1762795232840,6.78096285,3528.8,3528.7,0.002]
[1762795233164,7.78666831,3528.8,3528.7,0.002]
[1762795233664,8.24095664,3528.8,3528.7,0.002]
[1762795234472,7.38116431,3528.8,3528.7,0.002]
[1762795234673,7.83545264,3528.8,3528.7,0.002]
[1762795235164,6.82974718,3528.8,3528.7,0.002]
[1762795235359,6.37545885,3528.8,3528.7,0.002]
[1762795236169,7.43374097,3528.8,3528.7,0.002]
[1762795236381,7.89624097,3528.8,3528.7,0.002]
[1762795238144,6.37545885,3528.8,3528.7,0.002]
[1762795238642,7.17715701,3528.8,3528.7,0.002]
[1762795238843,7.17715701,3528.8,3528.3,0.002]
[1762795238844,4.09385778,3528.4,3528.3,0.002]
[1762795239193,14.78919226,3528.4,3528.3,0.002]
[1762795239341,15.65719626,3528.4,3528.3,0.002]
[1762795239542,15.65719626,3528.4,3528.1,0.005]
[1762795239543,3.23981044,3528.2,3528.1,0.005]
[1762795239775,5.9403736,3528.2,3528.1,0.005]
[1762795239973,6.79906776,3528.2,3528.1,0.005]
[1762795240657,4.09417912,3528.0,3527.9,0.002]
[1762795240846,6.31972444,3528.0,3527.9,0.002]
[1762795241047,6.78222444,3528.0,3527.9,0.002]
[1762795241244,6.78222444,3528.0,3526.5,0.1801]
[1762795241245,2.83511,3527.2,3526.5,0.1801]
[1762795241561,12.71084124,3527.2,3526.5,0.1801]
[1762795241756,13.17334124,3527.2,3526.5,0.1801]
[1762795241999,12.71084124,3527.2,3526.5,0.1801]
[1762795243142,13.46622673,3527.2,3526.5,0.1801]
[1762795243346,13.01612673,3527.2,3526.5,0.1801]
[1762795243554,14.78716124,3527.2,3526.5,0.1801]
[1762795243786,15.46662902,3527.2,3526.5,0.1801]
[1762795243954,14.45863658,3527.2,3526.5,0.1801]
[1762795244289,14.45863658,3527.2,3526.1,0.005]
[1762795244290,15.46517169,3527.2,3526.1,0.005]
[1762795244651,14.86414058,3527.2,3526.1,0.005]
[1762795244884,16.37612925,3527.2,3526.1,0.005]
[1762795245183,14.86414058,3527.2,3526.1,0.005]
[1762795246902,1.01980116,3527.2,3527.1,0.6508]
[1762795247081,1.51198867,3528.2,3527.4,1.259712]
[1762795247254,0.668,3528.1,3527.5,1.5308644]
[1762795247591,0.669,3528.0,3527.6,3.02687592]
[1762795247804,0.669,3527.9,3527.8,2.83455468]
[1762795247951,4.34503448,3529.8,3527.6,2.83478852]
[1762795247952,2.83399671,3528.6,3527.9,3.02662486]
[1762795248254,8.72676168,3529.3,3528.0,0.02834467]
[1762795248452,0.669,3529.2,3528.5,0.1921]
[1762795248693,2.83383069,3528.8,3528.5,0.1921]
[1762795248877,0.669,3528.7,3528.5,0.1921]
[1762795249551,0.669,3528.7,3528.0,3.0265657]
[1762795249552,2.83404382,3528.6,3527.8,2.83456774]
[1762795249752,0.669,3528.7,3528.0,2.8344037]
[1762795250054,0.669,3528.7,3528.6,0.1921]
[1762795250669,0.93570909,3529.3,3528.6,3.21813453]
[1762795250991,0.93570909,3529.3,3529.2,0.2324]
[1762795251157,1.60470909,3529.3,3529.2,0.2324]
[1762795252254,0.93570909,3529.3,3529.2,0.2324]
[1762795252454,0.93570909,3529.3,3529.2,3.37250834]
[1762795252651,0.93570909,3529.3,3529.2,3.25800334]
[1762795252856,1.60470909,3529.3,3529.2,0.2324]
[1762795253078,1.60470909,3529.3,3529.2,3.25800334]
[1762795253291,1.60470909,3529.3,3529.2,3.86716842]
[1762795254165,0.93570909,3529.3,3529.2,3.86716842]
[1762795254371,1.60370909,3529.3,3529.2,3.86716842]
[1762795259528,0.93570909,3529.3,3529.2,3.86716842]
[1762795259711,1.60270909,3529.3,3529.2,3.86716842]
[1762795261920,1.60270909,3529.3,3528.9,0.0403]
[1762795262119,0.93570909,3529.3,3529.2,0.1921]
[1762795262308,1.60270909,3529.3,3529.2,3.02560334]
[1762795262510,1.60270909,3529.3,3529.2,0.1921]
[1762795263428,1.60270909,3529.3,3529.2,3.21770334]
[1762795263627,1.60270909,3529.3,3529.2,4.84386538]
[1762795264131,0.001,3529.5,3529.4,2.83334277]
[1762795264339,0.001,3529.5,3529.4,3.21774277]
[1762795264340,0.668,3529.5,3529.4,3.21774277]
[1762795264629,0.001,3529.5,3529.4,3.21774277]
[1762795264840,0.001,3530.7,3529.4,3.21774277]
[1762795264841,0.001,3530.7,3530.3,2.83261963]
[1762795265131,0.001,3530.7,3530.6,0.1922]
[1762795265330,0.001,3530.7,3530.6,13.18757976]
[1762795265648,0.001,3530.7,3530.6,3.02457976]
[1762795265927,0.565,3530.7,3530.6,3.02457976]
[1762795266137,0.001,3530.7,3530.6,3.62950483]
[1762795266289,0.001,3530.7,3530.6,3.82170483]
[1762795266493,0.668,3530.7,3530.6,3.82170483]
[1762795266731,0.668,3530.7,3530.6,0.98932507]
[1762795266891,0.668,3530.7,3529.0,2.83359724]
[1762795266892,0.668,3530.7,3529.6,0.1922]
[1762795267093,0.668,3530.7,3530.6,0.1922]
[1762795267294,0.668,3530.7,3530.6,3.02457976]
[1762795267507,0.668,3530.7,3530.6,0.1922]
[1762795267719,0.668,3530.7,3530.2,3.02482155]
[1762795267918,0.668,3530.7,3530.3,3.41837071]
[1762795268694,0.668,3530.7,3529.6,2.83313896]
[1762795268695,0.4897,3530.4,3529.4,0.1922]
[1762795269299,2.83267821,3530.3,3529.7,1.259712]
[1762795269610,2.83285223,3530.1,3529.4,2.83334216]
[1762795269798,2.83285223,3530.1,3529.2,2.83346188]
[1762795269799,2.83285223,3530.1,3529.5,2.83326212]
[1762795269999,0.667,3530.2,3529.4,2.83332383]
[1762795270194,0.4942,3530.1,3528.6,0.1922]
[1762795270445,0.87621196,3530.1,3528.9,2.87399276]
[1762795270741,2.833314,3529.5,3528.9,0.0403]
[1762795270909,0.667,3529.4,3528.9,0.0403]
[1762795271096,0.667,3529.3,3528.9,0.34693065]
[1762795271296,0.667,3529.3,3529.0,2.83365508]
[1762795271836,0.667,3529.3,3528.9,0.34693065]
[1762795272040,0.667,3529.3,3528.9,1.60664265]
[1762795272346,0.4942,3529.2,3528.9,3.14034468]
[1762795272541,0.667,3529.3,3528.9,3.14034468]
[1762795273142,2.83321344,3529.6,3528.9,3.14034468]
[1762795273334,0.667,3529.5,3528.9,3.14034468]
[1762795273540,0.667,3529.5,3529.0,2.83364968]
[1762795273794,0.667,3529.5,3528.5,0.0405]
[1762795273912,0.4942,3529.4,3528.5,0.0405]
[1762795274331,2.83363777,3529.1,3528.5,0.0405]
[1762795274646,3.50066976,3529.0,3528.3,2.83417558]
[1762795275010,0.1845,3528.9,3528.3,2.83417558]
[1762795275210,0.1845,3528.9,3528.4,2.83413781]
[1762795275544,0.667,3528.8,3528.3,0.56735613]
[1762795275846,0.667,3528.8,3528.4,2.83409487]
[1762795276043,0.667,3528.8,3528.1,0.005]
[1762795276044,0.667,3528.8,3528.1,1.264712]
[1762795276413,0.667,3528.8,3528.3,2.83414914]
[1762795276746,0.667,3528.8,3528.2,1.259712]
[1762795276951,0.667,3528.8,3528.3,2.83416828]
[1762795277335,0.667,3528.8,3528.2,1.56286887]
[1762795277336,0.667,3528.8,3528.4,2.83408513]
[1762795277582,0.667,3528.8,3528.7,0.1922]
[1762795278075,0.667,3528.8,3528.6,2.83393869]
[1762795278442,0.667,3528.8,3528.5,2.83403522]
[1762795278642,2.83353522,3529.2,3528.6,2.83397504]
[1762795278855,0.667,3529.1,3528.6,2.83397504]
[1762795279482,0.667,3529.1,3528.5,2.83403435]
[1762795279681,0.667,3529.1,3528.6,2.833969]
[1762795279865,0.667,3529.1,3528.2,0.1922]
[1762795280176,0.667,3529.1,3528.1,0.005]
[1762795280177,2.83378352,3528.9,3528.1,0.005]
[1762795280757,0.4942,3528.8,3528.1,0.005]
[1762795280948,2.83422611,3528.3,3528.2,9.0018]
[1762795281310,1.1557,3528.3,3528.2,9.0018]
[1762795282585,2.83405404,3528.6,3528.2,9.0018]
[1762795282812,0.666,3528.3,3528.2,9.0018]
[1762795283012,3.50022611,3528.3,3528.2,9.0018]
[1762795283154,0.666,3528.3,3528.2,9.0018]
[1762795284696,3.50022611,3528.3,3528.2,9.0018]
[1762795284912,0.40307711,3529.0,3528.2,4.52938]
[1762795285069,2.83316236,3529.7,3528.9,0.457]
[1762795285275,0.669,3529.6,3529.1,0.457]
[1762795286004,3.50219098,3529.6,3529.1,0.457]
[1762795286160,0.472,3529.2,3529.0,9.0018]
[1762795286500,0.669,3529.1,3529.0,9.0018]
[1762795286671,0.669,3529.1,3529.0,9.90198]
[1762795286873,0.669,3529.1,3529.0,9.0018]
[1762795287881,0.001,3529.7,3529.1,2.6918]
[1762795288185,0.669,3529.6,3529.3,0.457]
[1762795288376,0.001,3529.7,3529.5,2.83326138]
[1762795288563,0.001,3529.7,3529.6,0.32902614]
[1762795288763,0.67,3529.7,3529.6,0.32902614]
[1762795288959,0.67,3529.7,3529.6,3.47782614]
[1762795289693,0.001,3529.7,3529.6,3.47782614]
[1762795289887,0.67,3529.7,3529.6,3.47782614]
[1762795292817,0.67,3529.7,3529.6,6.31100837]
[1762795293654,0.67,3529.7,3529.6,3.47782614]
[1762795293825,0.67,3529.7,3529.6,6.31100837]
[1762795294136,0.67,3529.7,3529.6,3.02082614]
[1762795294650,0.67,3529.7,3529.6,3.47782614]
[1762795294936,0.67,3529.7,3529.6,6.31100837]
[1762795295120,0.67,3529.7,3529.6,3.47782614]
[1762795296137,0.67,3529.7,3529.6,6.31100837]
[1762795296651,0.67,3529.7,3529.6,3.02082614]
[1762795296946,0.001,3530.7,3530.5,1.5689]
[1762795297102,2.83237976,3530.6,3530.5,1.5689]
[1762795297302,0.001,3530.7,3530.5,7.8789]
[1762795297513,0.001,3530.7,3530.6,6.767]
[1762795297938,0.001,3530.7,3530.6,8.8345]
[1762795298130,0.001,3530.7,3530.6,12.55032976]
[1762795298311,0.001,3530.7,3530.6,9.71795]
[1762795298511,0.001,3530.7,3530.6,12.55032976]
[1762795299722,0.001,3530.7,3530.6,9.21935]
[1762795300044,0.001,3530.7,3530.6,12.55032976]
[1762795304417,0.4519,3531.5,3531.2,1.5619]
[1762795304418,2.83187891,3531.3,3531.2,1.5619]
[1762795304840,0.2897,3531.3,3531.2,1.5619]
[1762795305540,0.001,3531.5,3531.4,4.09145012]
[1762795305724,0.001,3531.5,3531.4,5.04705012]
[1762795306637,0.001,3531.5,3531.4,5.61337509]
[1762795307027,0.001,3531.5,3531.4,6.01887909]
[1762795307229,0.001,3531.5,3531.4,8.76571679]
[1762795307431,0.005,3531.9,3531.8,2.8314174]
[1762795307654,0.005,3531.9,3531.8,3.2884174]
[1762795307834,0.005,3531.9,3531.8,3.7870174]
[1762795310470,0.005,3531.9,3531.8,5.3489174]
[1762795310767,0.005,3531.9,3531.8,6.29293112]
[1762795314040,0.005,3531.9,3531.8,7.55264312]
[1762795317853,0.005,3532.9,3532.4,2.83091726]
[1762795318059,0.005,3532.9,3532.6,2.83072612]
[1762795318656,0.4734,3532.9,3532.6,2.83072612]
[1762795319070,0.005,3532.9,3532.6,2.83072612]
[1762795319274,0.2724,3532.7,3532.5,10.69774999]
[1762795319576,0.2744,3532.6,3532.5,7.8669]
[1762795320281,0.2744,3532.6,3532.5,10.69775633]
[1762795320580,0.005,3532.9,3532.6,2.83076915]
[1762795320766,0.005,3532.9,3532.6,4.18363698]
[1762795320964,0.006,3532.9,3532.6,4.18363698]
[1762795321582,0.006,3532.9,3532.6,4.18364402]
[1762795322182,0.006,3532.9,3532.7,1.5569]
[1762795322570,0.2724,3532.8,3532.7,1.5569]
[1762795322773,0.7388,3532.8,3532.7,1.5569]
[1762795323981,0.2724,3532.8,3532.7,1.5569]
[1762795324289,0.7388,3532.8,3532.7,1.5569]
[1762795324494,3.56941594,3532.8,3532.7,1.5569]
[1762795325087,3.95874032,3532.8,3532.7,1.5569]
[1762795325691,3.56941594,3532.8,3532.7,1.5569]
[1762795326187,3.56941594,3532.8,3531.9,1.5569]
[1762795326188,2.83125707,3532.0,3531.9,1.5569]
[1762795326441,2.83136767,3531.9,3531.6,6.31]
[1762795326550,2.83125833,3532.0,3531.6,6.31]
[1762795326750,0.1853,3532.1,3531.6,6.31]
[1762795326751,0.6537,3532.1,3531.6,6.31]
[1762795327296,3.15977377,3532.8,3531.6,7.22437486]
[1762795327297,0.1853,3532.4,3531.6,7.22437486]
[1762795327455,2.83109479,3532.3,3531.6,9.62825739]
[1762795327663,0.1108,3532.9,3532.3,2.83096811]
[1762795327885,0.1108,3532.9,3532.4,3.86]
[1762795328059,0.1108,3532.9,3532.5,2.83080982]
[1762795328266,0.1108,3532.9,3532.5,2.8308097]
[1762795328589,0.1108,3532.9,3532.6,2.83077126]
[1762795328798,0.1108,3532.9,3532.6,2.83074588]
[1762795329090,0.1108,3532.9,3532.5,2.8308338]
[1762795329293,0.1108,3532.9,3532.5,4.41401843]
[1762795329462,0.1108,3532.9,3532.5,1.58318463]
[1762795329672,0.1108,3532.9,3532.5,4.41402803]
[1762795330050,0.1108,3532.9,3532.6,2.83075579]
[1762795330254,0.1108,3532.9,3532.6,2.83072578]
[1762795330856,0.006,3532.9,3532.7,0.9596915]
[1762795331169,0.006,3532.9,3532.8,3.86]
[1762795331772,0.4623,3532.9,3532.8,3.86]
[1762795332070,0.6588,3532.9,3532.8,3.86]
[1762795332270,0.006,3532.9,3532.8,3.86]
[1762795332995,0.006,3532.9,3532.8,10.17]
[1762795333182,0.1987,3532.9,3532.8,10.17]
[1762795334408,0.384,3532.9,3532.8,10.17]
[1762795334611,0.8496,3532.9,3532.8,10.17]
[1762795334820,0.006,3532.9,3532.8,13.00061594]
[1762795335017,0.006,3532.9,3532.8,12.70383199]
[1762795335236,0.006,3532.9,3532.8,9.22444793]
[1762795335409,0.006,3532.9,3532.8,6.62415993]
[1762795335580,0.006,3532.9,3532.8,5.04102794]
[1762795339303,0.1987,3532.9,3532.8,2.83061594]
[1762795339815,0.006,3532.9,3532.8,3.29461594]
[1762795340507,0.006,3532.9,3532.8,7.64131594]
[1762795340934,0.006,3532.9,3532.8,5.04102794]
[1762795341085,0.006,3532.9,3532.8,6.34017234]
[1762795342014,0.006,3532.9,3532.8,10.20017234]
[1762795342909,0.006,3532.9,3532.8,9.24947234]
[1762795343184,0.006,3532.9,3532.8,9.71347234]
[1762795344925,0.006,3532.9,3532.8,10.20017234]
[1762795347529,0.006,3532.9,3532.8,9.71347234]
[1762795347706,0.006,3532.9,3532.8,9.24947234]
[1762795348091,0.006,3532.9,3532.8,9.70417234]
[1762795348493,0.006,3532.9,3532.8,10.19177234]
[1762795350290,0.001,3533.3,3533.2,2.83029548]
[1762795350494,0.001,3533.3,3533.2,7.63576329]
[1762795350895,0.001,3533.3,3533.2,8.09046329]
[1762795351207,0.001,3533.3,3533.2,7.63576329]
[1762795351710,0.001,3533.3,3533.2,3.854]
[1762795351711,0.6594,3533.3,3533.2,3.854]
[1762795353822,0.001,3533.3,3533.2,3.854]
[1762795354007,0.001,3533.3,3533.2,6.68429548]
[1762795354222,0.1998,3533.3,3533.2,3.854]
[1762795354620,0.001,3533.3,3533.2,6.68429548]
[1762795354812,0.001,3533.3,3533.2,7.13899548]
[1762795355010,0.001,3533.3,3533.2,3.854]
[1762795355011,0.1998,3533.3,3533.2,3.854]
[1762795355540,0.1998,3533.3,3533.2,6.68429548]
[1762795356034,0.1998,3533.3,3533.2,3.854]
[1762795356336,0.1998,3533.3,3533.2,6.68429548]
[1762795356764,0.001,3533.3,3533.2,8.72147037]
[1762795356923,0.001,3533.3,3533.2,9.20907037]
[1762795357261,0.001,3533.3,3533.2,10.46878237]
[1762795359760,0.001,3533.3,3533.2,9.98118237]
[1762795359947,0.4913,3533.3,3533.2,9.52648237]
[1762795360156,0.4913,3533.3,3533.2,5.43647489]
[1762795360329,0.7439,3533.3,3533.2,3.854]
[1762795360524,0.4913,3533.3,3533.2,3.854]
[1762795360734,0.7439,3533.3,3533.2,3.854]
[1762795361565,0.4913,3533.3,3533.2,3.854]
[1762795361871,0.7439,3533.3,3533.2,3.854]
[1762795362378,0.001,3533.3,3533.2,3.854]
[1762795362679,0.001,3533.3,3533.2,8.64299548]
[1762795362835,0.001,3533.3,3533.2,7.62659548]
[1762795363434,0.001,3533.3,3533.2,7.13899548]
[1762795366157,0.001,3533.3,3533.2,8.39870748]
[1762795369953,0.2814,3533.3,3533.2,6.68429548]
[1762795370275,0.2814,3533.3,3533.2,8.26676338]
[1762795370984,0.2814,3533.3,3533.2,5.4364679]
[1762795371185,0.7418,3533.3,3533.2,3.854]
[1762795371344,0.001,3533.3,3533.2,3.854]
[1762795371760,0.2832,3533.3,3533.2,3.854]
[1762795371957,2.82997547,3533.6,3533.2,3.854]
[1762795372168,2.83001995,3533.6,3533.3,6.31]
[1762795372368,3.58734722,3534.3,3533.3,6.31]
[1762795372369,2.82991461,3533.7,3533.3,6.31]
[1762795372595,2.82982046,3533.8,3533.4,6.31]
[1762795372896,2.82995007,3533.7,3533.4,6.31]
[1762795373107,0.001,3534.1,3533.4,6.31]
[1762795373406,0.001,3533.7,3533.4,6.31]
[1762795373906,0.001,3533.7,3533.4,9.1401297]
[1762795374109,0.001,3533.7,3533.4,10.3371777]
[1762795374595,0.001,3533.7,3533.5,2.8300443]
[1762795374986,0.001,3533.7,3533.4,10.33715415]
[1762795375497,0.0046,3533.5,3533.4,9.14010615]
[1762795376103,0.0046,3533.5,3533.4,6.31]
[1762795376797,0.001,3533.7,3533.5,2.8299923]
[1762795377162,0.001,3533.7,3533.4,9.14009146]
[1762795377362,0.001,3533.7,3533.4,9.14012458]
[1762795377973,8.52130621,3534.5,3533.5,6.31]
[1762795378201,2.8297036,3534.0,3533.5,6.31]
[1762795378601,2.82964184,3534.1,3533.5,9.14001288]
[1762795378779,2.82966363,3534.0,3533.5,6.31]
[1762795379420,2.82966363,3534.0,3533.5,9.14005445]
[1762795379720,2.82966363,3534.0,3533.5,6.31]
[1762795379888,2.82959082,3534.1,3533.5,9.14002397]
[1762795380216,2.82965552,3534.0,3533.5,6.31]
[1762795380582,2.82960786,3534.1,3533.5,9.14003979]
[1762795381395,2.82951422,3534.2,3533.6,2.82997509]
[1762795381593,0.1853,3534.5,3533.8,2.82974356]
[1762795381919,2.82956318,3534.2,3533.6,3.29894706]
[1762795382520,2.82956318,3534.2,3533.6,3.29894659]
[1762795382839,0.1853,3534.5,3533.5,7.55392514]
[1762795382991,2.82975723,3533.9,3533.5,6.31]
[1762795383191,0.1853,3534.5,3533.5,6.31]
[1762795383392,2.82965706,3534.0,3533.5,6.31]
[1762795383783,0.1853,3534.5,3533.5,6.31]
[1762795383980,2.82969798,3534.0,3533.5,6.31]
[1762795384936,2.82997509,3533.6,3533.5,6.31]
[1762795385232,2.83026532,3533.3,3532.9,0.002]
[1762795385522,5.50672063,3533.7,3532.9,0.002]
[1762795385523,2.83029548,3533.2,3532.9,0.002]
[1762795385681,2.83037559,3533.1,3532.9,0.002]
[1762795386911,5.50672063,3533.7,3532.9,0.002]
[1762795387159,0.61055287,3533.6,3532.9,0.002]
[1762795387466,2.83042821,3533.1,3532.9,0.002]
[1762795387762,5.50672063,3533.6,3532.9,0.002]
[1762795387925,0.61042346,3533.5,3532.9,0.002]
[1762795388253,2.8302154,3533.3,3532.9,0.002]
[1762795388435,2.83015987,3533.4,3532.9,0.002]
[1762795388636,5.50672063,3533.9,3532.9,0.002]
[1762795388842,2.83016365,3533.4,3532.9,0.002]
[1762795389031,2.83006938,3533.5,3532.9,0.002]
[1762795389428,2.83027314,3533.3,3532.9,0.002]
[1762795389634,2.8301657,3533.4,3532.9,0.002]
[1762795391656,5.6361086,3533.3,3532.9,0.002]
[1762795391953,8.4665643,3533.0,3532.9,0.002]
[1762795392569,5.6361086,3533.6,3532.9,0.002]
[1762795392733,2.830237,3533.3,3532.9,0.002]
[1762795392920,2.83015764,3533.4,3532.9,0.002]
[1762795393257,8.46608701,3533.6,3532.9,0.002]
[1762795393258,2.83026604,3533.3,3532.9,0.002]
[1762795393554,2.83029754,3533.2,3532.9,0.002]
[1762795393719,2.83038038,3533.1,3532.9,0.002]
[1762795393926,5.6361086,3533.6,3532.9,0.002]
[1762795393927,2.83030065,3533.2,3532.9,0.002]
[1762795394142,2.83024256,3533.3,3532.9,0.002]
[1762795394340,4.84722184,3534.1,3533.0,3.86]
[1762795394543,2.83014618,3533.4,3533.1,3.86]
[1762795394845,2.83007135,3533.5,3533.1,3.86]
[1762795395069,2.83015136,3533.4,3533.1,3.86]
[1762795395575,2.83008827,3533.5,3533.1,3.86]
[1762795395764,2.83014049,3533.4,3533.1,3.86]
[1762795396681,2.83029548,3533.2,3533.1,3.86]
[1762795396874,2.830245,3533.3,3533.1,3.86]
[1762795397475,8.46620285,3533.5,3533.1,3.86]
[1762795397680,5.6361086,3533.5,3533.1,3.86]
[1762795398258,2.8301942,3533.4,3533.1,3.86]
[1762795398648,5.6361086,3533.5,3533.1,3.86]
[1762795399364,8.46618035,3533.5,3533.1,3.86]
[1762795399783,2.83007175,3533.5,3533.1,3.86]
[1762795400287,2.83014626,3533.4,3533.1,3.86]
[1762795400585,2.83007872,3533.5,3533.1,3.86]
[1762795401359,5.6361086,3533.7,3533.2,3.86]
[1762795401720,3.59252749,3534.2,3533.2,4.329]
[1762795401721,2.82981493,3533.8,3533.2,4.329]
[1762795402002,2.82994687,3533.7,3533.3,3.86]
[1762795402798,0.001,3534.2,3533.6,0.4909]
[1762795403001,2.83050854,3534.2,3533.7,3.86]
[1762795403187,5.6361086,3534.1,3533.7,3.86]
[1762795403509,2.82978102,3533.9,3533.7,3.86]
[1762795405705,2.82981493,3533.8,3533.7,3.86]
[1762795405904,8.46592353,3533.8,3533.7,3.86]
[1762795406484,5.6361086,3533.8,3532.6,3.86]
[1762795406720,5.6361086,3533.0,3532.5,0.002]
[1762795407005,8.4665643,3533.0,3532.5,0.002]
[1762795408384,8.4665643,3533.0,3532.8,0.002]
[1762795411948,2.8304557,3533.0,3532.8,0.002]
[1762795412836,2.83008443,3533.5,3532.9,4.3241]
[1762795412837,5.6361086,3533.1,3532.9,4.3241]
[1762795413705,5.6361086,3533.1,3533.0,0.4621]
[1762795413903,5.6361086,3533.4,3532.9,0.71767919]
[1762795414105,2.83026487,3533.3,3532.9,0.002]
[1762795415726,5.6361086,3533.4,3532.9,0.002]
[1762795415727,8.4662703,3533.4,3532.9,0.002]
[1762795416032,5.6361086,3533.4,3532.9,0.002]
[1762795416193,5.6361086,3533.1,3532.9,0.002]
[1762795418038,2.83010172,3533.5,3533.0,0.9418]
[1762795418438,8.46611745,3533.6,3533.1,0.4797]
[1762795418742,2.83019936,3533.4,3532.9,4.53146616]
[1762795419041,2.83021568,3533.3,3532.9,4.53146616]
[1762795419506,8.46646768,3533.2,3532.9,3.862]
[1762795419709,5.6361086,3533.2,3532.9,3.862]
[1762795420317,0.43415079,3533.8,3533.1,0.4621]
[1762795420642,5.6361086,3533.6,3533.2,0.4621]
[1762795420852,5.6361086,3533.6,3533.2,0.9418]
[1762795421229,2.83006728,3533.5,3533.2,0.4621]
[1762795421436,2.83013605,3533.4,3533.2,0.4621]
[1762795421733,2.83008495,3533.5,3533.2,0.4621]
[1762795422442,2.83015861,3533.4,3533.2,0.4621]
[1762795423051,2.83008902,3533.5,3533.2,0.4621]
[1762795423542,2.83013347,3533.5,3533.2,0.4621]
[1762795423722,5.6361086,3533.6,3533.2,0.4621]
[1762795423723,2.8301375,3533.4,3533.2,0.4621]
[1762795424460,2.83014193,3533.4,3533.2,0.4621]
[1762795424762,2.83012147,3533.5,3533.2,0.4621]
[1762795424931,2.83012016,3533.5,3533.2,0.4621]
[1762795425126,2.83013564,3533.4,3533.2,0.4621]
[1762795425865,2.83013564,3533.4,3533.3,3.86]
[1762795426363,2.83008884,3533.5,3533.3,4.3221]
[1762795427770,8.46611684,3533.6,3533.3,4.3221]
[1762795428062,2.83007848,3533.5,3533.3,4.3221]
[1762795430266,2.83013528,3533.4,3533.3,3.86]
[1762795431071,0.001,3534.2,3533.7,2.82988115]
[1762795431283,0.001,3534.2,3533.5,2.83005374]
[1762795431284,0.001,3534.2,3534.1,0.4621]
[1762795431975,0.001,3534.2,3534.1,4.3221]
[1762795433878,2.83049465,3534.2,3534.1,4.3221]
[1762795434096,2.83049465,3534.2,3534.1,3.86]
[1762795434530,0.001,3534.2,3534.1,4.3402]
[1762795436272,0.001,3534.2,3534.1,3.86]
[1762795436979,2.83049465,3534.2,3534.1,3.86]
[1762795437674,0.001,3534.2,3534.1,3.86]
[1762795438742,2.83049465,3534.2,3534.1,3.86]
[1762795439157,0.001,3534.2,3534.1,3.86]
[1762795440486,0.001,3534.2,3534.1,5.0187]
[1762795440691,0.001,3534.2,3534.1,5.52057]
[1762795442064,0.001,3534.2,3534.1,5.52257]
[1762795442265,0.001,3534.2,3534.1,4.5231]
[1762795442591,2.83659465,3534.2,3534.1,3.862]
[1762795442795,2.83659465,3534.2,3534.1,0.002]
[1762795442796,2.84269465,3534.2,3534.1,0.002]
[1762795443054,2.83659465,3534.2,3534.1,0.002]